[Event "*** Titled Tuesday Blitz"]
[Site "Chess.com"]
[Date "2020.04.28"]
[Round "6"]
[White "Gabix_94"]
[Black "EvgenyRomanov"]
[Result "1/2-1/2"]
[WhiteElo "2794"]
[BlackElo "2661"]
[TimeControl "180+1"]
[EndTime "11:08:02 PDT"]
[Termination "Game drawn by stalemate"]

1. Nf3 {[%clk 0:03:00.5]} 1... d5 {[%clk 0:02:45.1]} 2. g3 {[%clk 0:02:59.5]}
2... c6 {[%clk 0:02:44.6]} 3. Bg2 {[%clk 0:02:58.8]} 3... Nf6 {[%clk 0:02:44.8]}
4. O-O {[%clk 0:02:59.1]} 4... Bg4 {[%clk 0:02:45.1]} 5. d4 {[%clk 0:02:54.3]}
5... e6 {[%clk 0:02:42.3]} 6. Nbd2 {[%clk 0:02:53.8]} 6... Be7 {[%clk
0:02:41.8]} 7. Re1 {[%clk 0:02:51.6]} 7... O-O {[%clk 0:02:41.7]} 8. h3 {[%clk
0:02:48]} 8... Bh5 {[%clk 0:02:39.5]} 9. e4 {[%clk 0:02:47]} 9... a5 {[%clk
0:02:38.9]} 10. c3 {[%clk 0:02:37.6]} 10... a4 {[%clk 0:02:38.2]} 11. e5 {[%clk
0:02:30.4]} 11... Nfd7 {[%clk 0:02:37.3]} 12. Nf1 {[%clk 0:02:28.2]} 12... c5
{[%clk 0:02:34.6]} 13. g4 {[%clk 0:02:20.4]} 13... Bg6 {[%clk 0:02:33.9]} 14.
Ng3 {[%clk 0:02:16.7]} 14... Nc6 {[%clk 0:02:33.6]} 15. Be3 {[%clk 0:02:12.6]}
15... cxd4 {[%clk 0:02:31.1]} 16. cxd4 {[%clk 0:02:09.2]} 16... Nb6 {[%clk
0:02:31.7]} 17. b3 {[%clk 0:02:03.7]} 17... Nb4 {[%clk 0:02:29.9]} 18. Re2
{[%clk 0:01:59.7]} 18... axb3 {[%clk 0:02:17.9]} 19. axb3 {[%clk 0:02:00.6]}
19... Rxa1 {[%clk 0:02:17]} 20. Qxa1 {[%clk 0:01:59.3]} 20... Qa8 {[%clk
0:02:14.4]} 21. Qb2 {[%clk 0:01:53.8]} 21... Rc8 {[%clk 0:02:10]} 22. Ne1 {[%clk
0:01:46.7]} 22... h6 {[%clk 0:01:57.9]} 23. f4 {[%clk 0:01:43.8]} 23... Bh4
{[%clk 0:01:54.5]} 24. Kh2 {[%clk 0:01:38.9]} 24... Bxg3+ {[%clk 0:01:45.8]} 25.
Kxg3 {[%clk 0:01:38.2]} 25... Be4 {[%clk 0:01:46.3]} 26. Bf1 {[%clk 0:01:33.1]}
26... Nd3 {[%clk 0:01:26.5]} 27. Nxd3 {[%clk 0:01:28.5]} 27... Bxd3 {[%clk
0:01:27.4]} 28. Rf2 {[%clk 0:01:29]} 28... Qa6 {[%clk 0:01:25.6]} 29. Bg2 {[%clk
0:01:25]} 29... Nd7 {[%clk 0:01:20.5]} 30. f5 {[%clk 0:01:17.3]} 30... Be4
{[%clk 0:01:16.8]} 31. Bf1 {[%clk 0:01:16]} 31... Bd3 {[%clk 0:01:16.7]} 32. Bg2
{[%clk 0:01:13]} 32... Be4 {[%clk 0:01:08.6]} 33. Bxe4 {[%clk 0:01:11.7]} 33...
dxe4 {[%clk 0:01:08.5]} 34. Qb1 {[%clk 0:01:12.6]} 34... Qc6 {[%clk 0:01:07.2]}
35. Kh2 {[%clk 0:01:06.4]} 35... Nb6 {[%clk 0:01:06.1]} 36. fxe6 {[%clk
0:01:06]} 36... fxe6 {[%clk 0:01:05.5]} 37. h4 {[%clk 0:01:02.1]} 37... Rf8
{[%clk 0:01:00.4]} 38. Rxf8+ {[%clk 0:01:01.9]} 38... Kxf8 {[%clk 0:01:00]} 39.
g5 {[%clk 0:01:02.5]} 39... hxg5 {[%clk 0:00:58.6]} 40. Bxg5 {[%clk 0:01:00.2]}
40... Qd5 {[%clk 0:00:53.7]} 41. Qf1+ {[%clk 0:00:57.5]} 41... Kg8 {[%clk
0:00:52.6]} 42. Qh3 {[%clk 0:00:54.4]} 42... Nd7 {[%clk 0:00:48.5]} 43. h5
{[%clk 0:00:51.5]} 43... Nf8 {[%clk 0:00:47.4]} 44. Qe3 {[%clk 0:00:47.9]} 44...
Qc6 {[%clk 0:00:43.2]} 45. Kg3 {[%clk 0:00:44.2]} 45... Qc2 {[%clk 0:00:40.2]}
46. Be7 {[%clk 0:00:44]} 46... Qb1 {[%clk 0:00:25.4]} 47. Bxf8 {[%clk
0:00:36.5]} 47... Kxf8 {[%clk 0:00:26.3]} 48. h6 {[%clk 0:00:36.9]} 48... Kg8
{[%clk 0:00:24.5]} 49. hxg7 {[%clk 0:00:32.2]} 49... b5 {[%clk 0:00:24]} 50. Kh4
{[%clk 0:00:28.6]} 50... Qh1+ {[%clk 0:00:22.8]} 51. Kg5 {[%clk 0:00:28.1]}
51... Kxg7 {[%clk 0:00:22.5]} 52. Qf4 {[%clk 0:00:25.3]} 52... Qf3 {[%clk
0:00:20.8]} 53. Qf6+ {[%clk 0:00:22.1]} 53... Qxf6+ {[%clk 0:00:20.5]} 54. exf6+
{[%clk 0:00:23]} 54... Kf7 {[%clk 0:00:21]} 55. Kf4 {[%clk 0:00:23.6]} 55...
Kxf6 {[%clk 0:00:21.1]} 56. Kxe4 {[%clk 0:00:24.1]} 56... Ke7 {[%clk 0:00:20.5]}
57. Ke5 {[%clk 0:00:16.6]} 57... b4 {[%clk 0:00:20.2]} 58. d5 {[%clk 0:00:16.2]}
58... exd5 {[%clk 0:00:20.4]} 59. Kxd5 {[%clk 0:00:17.1]} 59... Kd7 {[%clk
0:00:20.8]} 60. Kc4 {[%clk 0:00:17.5]} 60... Kc6 {[%clk 0:00:20.9]} 61. Kxb4
{[%clk 0:00:18.2]} 61... Kb6 {[%clk 0:00:21.4]} 62. Kc4 {[%clk 0:00:18.8]} 62...
Kc6 {[%clk 0:00:21.8]} 63. b4 {[%clk 0:00:19.5]} 63... Kb6 {[%clk 0:00:22.1]}
64. b5 {[%clk 0:00:20.1]} 64... Kb7 {[%clk 0:00:22.8]} 65. Kb4 {[%clk
0:00:20.7]} 65... Kc7 {[%clk 0:00:23.5]} 66. Kc5 {[%clk 0:00:21.3]} 66... Kb7
{[%clk 0:00:23.7]} 67. b6 {[%clk 0:00:21.7]} 67... Kb8 {[%clk 0:00:23.9]} 68.
Kb5 {[%clk 0:00:22.4]} 68... Kb7 {[%clk 0:00:24]} 69. Ka5 {[%clk 0:00:22.8]}
69... Kb8 {[%clk 0:00:23.8]} 70. Ka6 {[%clk 0:00:23.4]} 70... Ka8 {[%clk
0:00:24]} 71. b7+ {[%clk 0:00:23.9]} 71... Kb8 {[%clk 0:00:24.1]} 72. Kb6 {[%clk
0:00:24.5]} 1/2-1/2

[Event "*** Titled Tuesday Blitz"]
[Site "Chess.com"]
[Date "2020.04.28"]
[Round "6"]
[White "eljanov"]
[Black "Evgeny81"]
[Result "1-0"]
[WhiteElo "2898"]
[BlackElo "2697"]
[TimeControl "180+1"]
[EndTime "11:08:03 PDT"]
[Termination "eljanov won by resignation"]

1. Nf3 {[%clk 0:03:00.9]} 1... d5 {[%clk 0:03:00]} 2. g3 {[%clk 0:03:01]} 2...
Nd7 {[%clk 0:03:00]} 3. Bg2 {[%clk 0:03:01.9]} 3... e5 {[%clk 0:02:58.7]} 4. O-O
{[%clk 0:03:01.5]} 4... Ngf6 {[%clk 0:02:58.3]} 5. c4 {[%clk 0:02:57]} 5... c6
{[%clk 0:02:55.6]} 6. d3 {[%clk 0:02:48.5]} 6... Bd6 {[%clk 0:02:53.3]} 7. Nc3
{[%clk 0:02:45.4]} 7... d4 {[%clk 0:02:51.7]} 8. Nb1 {[%clk 0:02:43.1]} 8... O-O
{[%clk 0:02:50.7]} 9. e3 {[%clk 0:02:38.3]} 9... dxe3 {[%clk 0:02:41.8]} 10.
Bxe3 {[%clk 0:02:36.9]} 10... Re8 {[%clk 0:02:40.8]} 11. Nc3 {[%clk 0:02:36.3]}
11... Nc5 {[%clk 0:02:36.4]} 12. Re1 {[%clk 0:02:26.4]} 12... Bf5 {[%clk
0:02:27.2]} 13. d4 {[%clk 0:01:55.4]} 13... Nd3 {[%clk 0:02:05.6]} 14. Re2
{[%clk 0:01:54.9]} 14... e4 {[%clk 0:02:04.1]} 15. Nh4 {[%clk 0:01:44.9]} 15...
Bg4 {[%clk 0:02:03.2]} 16. f3 {[%clk 0:01:45.2]} 16... exf3 {[%clk 0:02:00.4]}
17. Bxf3 {[%clk 0:01:42.3]} 17... Bxf3 {[%clk 0:01:50.6]} 18. Nxf3 {[%clk
0:01:41.6]} 18... Nxb2 {[%clk 0:01:49.9]} 19. Qb3 {[%clk 0:01:41.8]} 19... Ng4
{[%clk 0:01:34.6]} 20. Bg5 {[%clk 0:00:36.8]} 20... Be7 {[%clk 0:00:47.3]} 21.
Bxe7 {[%clk 0:00:35.4]} 21... Rxe7 {[%clk 0:00:44.9]} 22. Qxb2 {[%clk
0:00:35.7]} 22... Rxe2 {[%clk 0:00:41.6]} 23. Qxe2 {[%clk 0:00:35.3]} 23... Qa5
{[%clk 0:00:38.5]} 24. Re1 {[%clk 0:00:31.8]} 24... Nf6 {[%clk 0:00:37.4]} 25.
Ne4 {[%clk 0:00:28.6]} 25... Nxe4 {[%clk 0:00:33.5]} 26. Qxe4 {[%clk 0:00:29.5]}
26... g6 {[%clk 0:00:34]} 27. Re2 {[%clk 0:00:25.3]} 27... Qc3 {[%clk
0:00:33.3]} 28. c5 {[%clk 0:00:24.9]} 28... Rd8 {[%clk 0:00:31.5]} 29. Kg2
{[%clk 0:00:24]} 29... Qc4 {[%clk 0:00:27.2]} 30. h4 {[%clk 0:00:23.7]} 30... h5
{[%clk 0:00:25.5]} 31. Rf2 {[%clk 0:00:23.1]} 31... b6 {[%clk 0:00:18]} 32. Ng5
{[%clk 0:00:21.4]} 32... Qd5 {[%clk 0:00:15.9]} 33. Qxd5 {[%clk 0:00:20.1]}
33... Rxd5 {[%clk 0:00:16.2]} 34. cxb6 {[%clk 0:00:17.3]} 34... axb6 {[%clk
0:00:15.6]} 35. Nxf7 {[%clk 0:00:15.6]} 35... Rxd4 {[%clk 0:00:15.4]} 36. Ne5
{[%clk 0:00:15.8]} 36... Rd6 {[%clk 0:00:15.4]} 37. Nc4 {[%clk 0:00:14.3]} 37...
Rd4 {[%clk 0:00:15.3]} 38. Nxb6 {[%clk 0:00:14.5]} 38... c5 {[%clk 0:00:13.7]}
39. Rc2 {[%clk 0:00:13.9]} 39... Rb4 {[%clk 0:00:13.5]} 40. Nc4 {[%clk
0:00:14.1]} 40... Kf7 {[%clk 0:00:13.8]} 41. Kf3 {[%clk 0:00:14.2]} 41... Ke6
{[%clk 0:00:14.1]} 42. Kf4 {[%clk 0:00:14.2]} 42... Rb1 {[%clk 0:00:14.3]} 43.
a4 {[%clk 0:00:11.6]} 43... Ra1 {[%clk 0:00:13.2]} 44. a5 {[%clk 0:00:11.3]}
44... Kd5 {[%clk 0:00:13.3]} 45. Kg5 {[%clk 0:00:11.2]} 45... Kd4 {[%clk
0:00:13.4]} 46. Nd6 {[%clk 0:00:05.6]} 46... Rxa5 {[%clk 0:00:11.5]} 47. Rd2+
{[%clk 0:00:05.9]} 47... Kc3 {[%clk 0:00:10.9]} 48. Ne4+ {[%clk 0:00:05.3]}
48... Kb3 {[%clk 0:00:09.6]} 49. Kxg6 {[%clk 0:00:05.1]} 49... c4 {[%clk
0:00:09.3]} 50. Rf2 {[%clk 0:00:04.8]} 50... Re5 {[%clk 0:00:08.5]} 51. Rf3+
{[%clk 0:00:04.9]} 51... Kb4 {[%clk 0:00:08.2]} 52. Nc3 {[%clk 0:00:04.9]} 52...
Ra5 {[%clk 0:00:06.9]} 53. Ne2 {[%clk 0:00:04.1]} 53... Re5 {[%clk 0:00:06.6]}
54. Nf4 {[%clk 0:00:03.9]} 54... c3 {[%clk 0:00:05.9]} 55. Nd3+ {[%clk
0:00:03.5]} 1-0

[Event "*** Titled Tuesday Blitz"]
[Site "Chess.com"]
[Date "2020.04.28"]
[Round "6"]
[White "Durarbayli"]
[Black "mishanick"]
[Result "1-0"]
[WhiteElo "2806"]
[BlackElo "3012"]
[TimeControl "180+1"]
[EndTime "11:08:04 PDT"]
[Termination "Durarbayli won by resignation"]

1. e4 {[%clk 0:03:00.9]} 1... c5 {[%clk 0:02:59.8]} 2. b3 {[%clk 0:03:01.3]}
2... Nc6 {[%clk 0:02:54.3]} 3. Bb2 {[%clk 0:03:00.9]} 3... Nf6 {[%clk
0:02:54.9]} 4. e5 {[%clk 0:02:57.9]} 4... Nd5 {[%clk 0:02:54.7]} 5. Nf3 {[%clk
0:02:52]} 5... e6 {[%clk 0:02:54.8]} 6. c4 {[%clk 0:02:48.8]} 6... Nf4 {[%clk
0:02:50.1]} 7. g3 {[%clk 0:02:33.2]} 7... Ng6 {[%clk 0:02:50]} 8. h4 {[%clk
0:02:33.7]} 8... h6 {[%clk 0:02:41.1]} 9. Bg2 {[%clk 0:02:12.4]} 9... b6 {[%clk
0:02:33.5]} 10. h5 {[%clk 0:02:06.4]} 10... Nge7 {[%clk 0:02:32.7]} 11. d4
{[%clk 0:02:06.8]} 11... cxd4 {[%clk 0:02:31.3]} 12. Nxd4 {[%clk 0:02:06.5]}
12... Bb7 {[%clk 0:02:31.8]} 13. Nb5 {[%clk 0:02:06.1]} 13... Nf5 {[%clk
0:02:01.7]} 14. g4 {[%clk 0:01:57.2]} 14... a6 {[%clk 0:01:38.1]} 15. gxf5
{[%clk 0:01:46.7]} 15... axb5 {[%clk 0:01:36.7]} 16. cxb5 {[%clk 0:01:46.4]}
16... Na5 {[%clk 0:01:12.6]} 17. Bxb7 {[%clk 0:01:43.3]} 17... Nxb7 {[%clk
0:01:13.5]} 18. fxe6 {[%clk 0:01:37.9]} 18... fxe6 {[%clk 0:01:14]} 19. Qf3
{[%clk 0:01:24.8]} 19... Nc5 {[%clk 0:01:05.8]} 20. Nd2 {[%clk 0:01:23]} 20...
Be7 {[%clk 0:01:04.3]} 21. Nc4 {[%clk 0:01:01.9]} 21... Rf8 {[%clk 0:00:58.3]}
22. Qg3 {[%clk 0:00:58.5]} 22... Qc7 {[%clk 0:00:48]} 23. Qg6+ {[%clk
0:00:52.2]} 23... Rf7 {[%clk 0:00:45]} 24. Rh3 {[%clk 0:00:49.9]} 24... Qb7
{[%clk 0:00:39.3]} 25. a4 {[%clk 0:00:21.8]} 25... Kf8 {[%clk 0:00:30.3]} 26.
O-O-O {[%clk 0:00:18.7]} 26... Kg8 {[%clk 0:00:26.8]} 27. Nd6 {[%clk 0:00:09.3]}
27... Bxd6 {[%clk 0:00:25.9]} 28. exd6 {[%clk 0:00:10.2]} 28... Rc8 {[%clk
0:00:16.6]} 29. Kb1 {[%clk 0:00:10.1]} 29... Ne4 {[%clk 0:00:11.8]} 30. Rg1
{[%clk 0:00:08.6]} 30... Ng5 {[%clk 0:00:08.1]} 31. Rhg3 {[%clk 0:00:07.1]}
31... e5 {[%clk 0:00:03.6]} 32. Rxg5 {[%clk 0:00:06.6]} 32... hxg5 {[%clk
0:00:03.8]} 33. h6 {[%clk 0:00:07.5]} 33... Qd5 {[%clk 0:00:04.1]} 34. h7+
{[%clk 0:00:04.6]} 34... Kh8 {[%clk 0:00:04.1]} 35. Ka2 {[%clk 0:00:04.6]} 35...
Rxf2 {[%clk 0:00:02.8]} 36. Qxg5 {[%clk 0:00:04.1]} 36... Rxb2+ {[%clk 0:00:02]}
37. Kxb2 {[%clk 0:00:05]} 37... Qd4+ {[%clk 0:00:02.7]} 38. Ka3 {[%clk
0:00:04.6]} 38... e4 {[%clk 0:00:03]} 39. Qg3 {[%clk 0:00:02.6]} 39... Qc5+
{[%clk 0:00:02.8]} 40. Ka2 {[%clk 0:00:02.3]} 40... Qd4 {[%clk 0:00:03.4]} 41.
Qg5 {[%clk 0:00:01.4]} 41... Rc2+ {[%clk 0:00:03.6]} 42. Ka3 {[%clk 0:00:01.9]}
42... Qb2+ {[%clk 0:00:03.4]} 43. Kb4 {[%clk 0:00:02.8]} 43... Qd4+ {[%clk
0:00:03.6]} 44. Ka3 {[%clk 0:00:03.4]} 44... e3 {[%clk 0:00:03.6]} 45. Qd8+
{[%clk 0:00:02.6]} 45... Kxh7 {[%clk 0:00:04.3]} 46. Rh1+ {[%clk 0:00:03.2]}
46... Kg6 {[%clk 0:00:04.9]} 47. Qe8+ {[%clk 0:00:03.6]} 47... Kg5 {[%clk
0:00:03.3]} 48. Qe7+ {[%clk 0:00:03.4]} 48... Kf4 {[%clk 0:00:02.2]} 49. Rh4+
{[%clk 0:00:03.3]} 49... Kf3 {[%clk 0:00:02.6]} 50. Rxd4 {[%clk 0:00:04.2]}
50... e2 {[%clk 0:00:02.6]} 51. Re4 {[%clk 0:00:04.6]} 51... g5 {[%clk
0:00:02.2]} 52. Re3+ {[%clk 0:00:04.7]} 52... Kf2 {[%clk 0:00:02.8]} 53. Rxe2+
{[%clk 0:00:05]} 53... Rxe2 {[%clk 0:00:02.8]} 54. Qxg5 {[%clk 0:00:05.9]} 54...
Re6 {[%clk 0:00:03.3]} 55. Qf5+ {[%clk 0:00:05.6]} 55... Ke3 {[%clk 0:00:04.2]}
56. Qxe6+ {[%clk 0:00:06.2]} 56... dxe6 {[%clk 0:00:05.1]} 57. d7 {[%clk
0:00:07.1]} 1-0

[Event "*** Titled Tuesday Blitz"]
[Site "Chess.com"]
[Date "2020.04.28"]
[Round "6"]
[White "MergenKakabaev"]
[Black "morfius"]
[Result "0-1"]
[WhiteElo "2446"]
[BlackElo "2600"]
[TimeControl "180+1"]
[EndTime "11:08:06 PDT"]
[Termination "morfius won by resignation"]

1. e4 {[%clk 0:03:00.9]} 1... c5 {[%clk 0:02:59.5]} 2. Nf3 {[%clk 0:03:00.6]}
2... d6 {[%clk 0:02:59.9]} 3. d4 {[%clk 0:03:00.5]} 3... cxd4 {[%clk 0:03:00.8]}
4. Nxd4 {[%clk 0:03:00.4]} 4... Nf6 {[%clk 0:03:00.7]} 5. Nc3 {[%clk 0:03:00.4]}
5... a6 {[%clk 0:03:01.2]} 6. Bg5 {[%clk 0:03:00.4]} 6... Nbd7 {[%clk
0:02:59.4]} 7. Qe2 {[%clk 0:03:00]} 7... h6 {[%clk 0:02:56.6]} 8. Bh4 {[%clk
0:02:59.4]} 8... g6 {[%clk 0:02:56.5]} 9. f4 {[%clk 0:02:59.6]} 9... e5 {[%clk
0:02:56.6]} 10. fxe5 {[%clk 0:02:59.8]} 10... dxe5 {[%clk 0:02:56.6]} 11. O-O-O
{[%clk 0:03:00.3]} 11... Qc7 {[%clk 0:02:51.8]} 12. Nb3 {[%clk 0:02:58.9]} 12...
Be7 {[%clk 0:02:49.9]} 13. Qc4 {[%clk 0:02:51.4]} 13... Qxc4 {[%clk 0:02:45.3]}
14. Bxc4 {[%clk 0:02:52.3]} 14... O-O {[%clk 0:02:45.8]} 15. Rhf1 {[%clk
0:02:48.4]} 15... Kg7 {[%clk 0:02:42.4]} 16. Na5 {[%clk 0:02:29.9]} 16... Bb4
{[%clk 0:02:34.1]} 17. Nb3 {[%clk 0:02:13.8]} 17... Bxc3 {[%clk 0:02:20.2]} 18.
bxc3 {[%clk 0:02:13.5]} 18... g5 {[%clk 0:02:18.9]} 19. Be1 {[%clk 0:02:02.5]}
19... Nxe4 {[%clk 0:02:18.7]} 20. Bd5 {[%clk 0:02:00.5]} 20... Nef6 {[%clk
0:02:17.9]} 21. c4 {[%clk 0:02:00.6]} 21... Rb8 {[%clk 0:02:16.2]} 22. Bc3
{[%clk 0:01:59.4]} 22... Re8 {[%clk 0:01:58.3]} 23. Na5 {[%clk 0:01:41.4]} 23...
Nb6 {[%clk 0:01:38.3]} 24. Rde1 {[%clk 0:01:35.7]} 24... Nfxd5 {[%clk
0:01:37.8]} 25. Rxe5 {[%clk 0:01:27.2]} 25... Kf8 {[%clk 0:01:08.2]} 26. cxd5
{[%clk 0:01:25.1]} 26... Bd7 {[%clk 0:01:01.7]} 27. Bb4+ {[%clk 0:01:12.5]}
27... Kg7 {[%clk 0:01:00.4]} 28. Rxe8 {[%clk 0:01:12.2]} 28... Bxe8 {[%clk
0:01:00.2]} 29. c4 {[%clk 0:01:07.1]} 29... Nxc4 {[%clk 0:00:58.7]} 30. Bc3+
{[%clk 0:00:56.7]} 30... Kg8 {[%clk 0:00:53.6]} 31. Nxc4 {[%clk 0:00:52.7]}
31... Rc8 {[%clk 0:00:54.1]} 32. Re1 {[%clk 0:00:52.6]} 32... Bb5 {[%clk
0:00:51.6]} 33. d6 {[%clk 0:00:47.9]} 33... Rxc4 {[%clk 0:00:49.2]} 34. Kb2
{[%clk 0:00:47.1]} 34... Rc8 {[%clk 0:00:44.3]} 35. Re7 {[%clk 0:00:45.5]} 35...
Rd8 {[%clk 0:00:41.1]} 36. Bb4 {[%clk 0:00:33.3]} 36... Rd7 {[%clk 0:00:41]} 37.
Re5 {[%clk 0:00:28.8]} 37... f6 {[%clk 0:00:39.6]} 38. Re8+ {[%clk 0:00:24.3]}
38... Kf7 {[%clk 0:00:39.2]} 39. Rh8 {[%clk 0:00:24.5]} 39... Kg6 {[%clk
0:00:37.4]} 40. Rc8 {[%clk 0:00:23.8]} 40... h5 {[%clk 0:00:34.3]} 41. Kc3
{[%clk 0:00:20]} 41... h4 {[%clk 0:00:34.6]} 42. Kd4 {[%clk 0:00:19.7]} 42...
Kf5 {[%clk 0:00:32.1]} 43. g3 {[%clk 0:00:19.4]} 43... hxg3 {[%clk 0:00:31.4]}
44. hxg3 {[%clk 0:00:20.3]} 44... Kg4 {[%clk 0:00:32.1]} 45. Rf8 {[%clk
0:00:19.4]} 45... f5 {[%clk 0:00:31.6]} 46. Ke5 {[%clk 0:00:19.3]} 46... Kxg3
{[%clk 0:00:20.4]} 47. Kxf5 {[%clk 0:00:19.1]} 47... g4 {[%clk 0:00:21.3]} 48.
Rg8 {[%clk 0:00:19.3]} 48... Bd3+ {[%clk 0:00:18.5]} 49. Ke6 {[%clk 0:00:19.5]}
49... Bb5 {[%clk 0:00:18.8]} 50. Rg5 {[%clk 0:00:18.1]} 50... Rh7 {[%clk
0:00:17.8]} 51. Rf5 {[%clk 0:00:14.6]} 51... Bd7+ {[%clk 0:00:16.8]} 52. Ke5
{[%clk 0:00:14.8]} 52... Bxf5 {[%clk 0:00:17.5]} 53. Kxf5 {[%clk 0:00:15.7]}
53... Kf3 {[%clk 0:00:17.9]} 54. Ke6 {[%clk 0:00:15.5]} 54... g3 {[%clk
0:00:18.1]} 55. d7 {[%clk 0:00:15.8]} 55... Rh8 {[%clk 0:00:16.7]} 56. Ke7
{[%clk 0:00:16.1]} 56... g2 {[%clk 0:00:17]} 57. Bc5 {[%clk 0:00:16.1]} 57... b5
{[%clk 0:00:16.6]} 58. d8=Q {[%clk 0:00:14.8]} 58... Rxd8 {[%clk 0:00:17.2]} 59.
Kxd8 {[%clk 0:00:15.7]} 59... a5 {[%clk 0:00:17.9]} 60. Kc7 {[%clk 0:00:15.5]}
60... b4 {[%clk 0:00:18.5]} 61. Kb6 {[%clk 0:00:15]} 61... a4 {[%clk 0:00:19]}
62. Kb5 {[%clk 0:00:14.2]} 62... b3 {[%clk 0:00:19.4]} 63. axb3 {[%clk
0:00:12.6]} 63... axb3 {[%clk 0:00:19.5]} 64. Bd4 {[%clk 0:00:13.2]} 64... b2
{[%clk 0:00:19.5]} 0-1

[Event "*** Titled Tuesday Blitz"]
[Site "Chess.com"]
[Date "2020.04.28"]
[Round "6"]
[White "agrigo3"]
[Black "nadirsm"]
[Result "0-1"]
[WhiteElo "2292"]
[BlackElo "2115"]
[TimeControl "180+1"]
[EndTime "11:08:07 PDT"]
[Termination "nadirsm won on time"]

1. Nf3 {[%clk 0:03:00.9]} 1... Nf6 {[%clk 0:03:00.3]} 2. g3 {[%clk 0:03:00.3]}
2... d5 {[%clk 0:03:01.2]} 3. Bg2 {[%clk 0:03:00.8]} 3... Bf5 {[%clk 0:03:01.3]}
4. O-O {[%clk 0:03:01.1]} 4... e6 {[%clk 0:03:02]} 5. d3 {[%clk 0:02:58.3]} 5...
c6 {[%clk 0:03:01.9]} 6. Nbd2 {[%clk 0:02:58.3]} 6... Nbd7 {[%clk 0:03:02.4]} 7.
Re1 {[%clk 0:02:55.5]} 7... Bc5 {[%clk 0:03:01.5]} 8. e4 {[%clk 0:02:53.5]} 8...
dxe4 {[%clk 0:02:59.4]} 9. dxe4 {[%clk 0:02:53.6]} 9... Bg6 {[%clk 0:02:33]} 10.
h3 {[%clk 0:02:43.1]} 10... Qb6 {[%clk 0:02:30.4]} 11. Qe2 {[%clk 0:02:40]}
11... O-O {[%clk 0:02:23.8]} 12. c3 {[%clk 0:01:36.9]} 12... Rad8 {[%clk
0:02:20.9]} 13. e5 {[%clk 0:01:25.5]} 13... Nd5 {[%clk 0:02:15.5]} 14. Nc4
{[%clk 0:01:22]} 14... Qc7 {[%clk 0:02:12.4]} 15. Bg5 {[%clk 0:01:20.6]} 15...
Be7 {[%clk 0:02:07.5]} 16. Bxe7 {[%clk 0:01:17.3]} 16... Nxe7 {[%clk 0:02:07.1]}
17. Nh4 {[%clk 0:01:04.7]} 17... b5 {[%clk 0:01:59.4]} 18. Nd6 {[%clk
0:00:41.9]} 18... Nxe5 {[%clk 0:01:56.7]} 19. Nxb5 {[%clk 0:00:41.7]} 19... cxb5
{[%clk 0:01:41.8]} 20. Qxe5 {[%clk 0:00:41.8]} 20... Qb6 {[%clk 0:01:34.9]} 21.
Nxg6 {[%clk 0:00:37.5]} 21... Nxg6 {[%clk 0:01:34.2]} 22. Qe2 {[%clk 0:00:32.3]}
22... Rd6 {[%clk 0:01:28.2]} 23. Rad1 {[%clk 0:00:31.4]} 23... Rfd8 {[%clk
0:01:28.9]} 24. h4 {[%clk 0:00:24.8]} 24... h6 {[%clk 0:01:25.8]} 25. Rxd6
{[%clk 0:00:19.9]} 25... Rxd6 {[%clk 0:01:24]} 26. Rd1 {[%clk 0:00:17.6]} 26...
a6 {[%clk 0:01:19.2]} 27. Rxd6 {[%clk 0:00:15]} 27... Qxd6 {[%clk 0:01:19.3]}
28. Be4 {[%clk 0:00:13.7]} 28... Ne7 {[%clk 0:01:12.7]} 29. Kg2 {[%clk
0:00:13.5]} 29... f5 {[%clk 0:01:11.1]} 30. Bf3 {[%clk 0:00:12.1]} 30... Nd5
{[%clk 0:01:10.1]} 31. Kg1 {[%clk 0:00:11.2]} 31... Nf6 {[%clk 0:01:09.9]} 32.
Kg2 {[%clk 0:00:10.8]} 32... e5 {[%clk 0:01:09.7]} 33. Kg1 {[%clk 0:00:09]}
33... e4 {[%clk 0:01:09.8]} 34. Bg2 {[%clk 0:00:09.4]} 34... Ng4 {[%clk
0:01:05.3]} 35. f3 {[%clk 0:00:08.6]} 35... Qc5+ {[%clk 0:00:59.2]} 36. Kh1
{[%clk 0:00:08.5]} 36... Nf2+ {[%clk 0:00:58]} 37. Kh2 {[%clk 0:00:08.9]} 37...
exf3 {[%clk 0:00:52.6]} 38. Bxf3 {[%clk 0:00:08.5]} 38... Ng4+ {[%clk
0:00:45.3]} 39. Bxg4 {[%clk 0:00:07.8]} 39... fxg4 {[%clk 0:00:46.2]} 40. Qe6+
{[%clk 0:00:07.7]} 40... Kh7 {[%clk 0:00:41.7]} 41. Qe4+ {[%clk 0:00:07.2]}
41... Kh8 {[%clk 0:00:40.5]} 42. Qe8+ {[%clk 0:00:06.7]} 42... Kh7 {[%clk
0:00:39.8]} 43. Qe4+ {[%clk 0:00:07.2]} 43... g6 {[%clk 0:00:37.1]} 44. Qb7+
{[%clk 0:00:05.8]} 44... Kg8 {[%clk 0:00:35]} 45. Qb8+ {[%clk 0:00:05.8]} 45...
Kg7 {[%clk 0:00:33.4]} 46. Qb7+ {[%clk 0:00:05.7]} 46... Kf6 {[%clk 0:00:32.3]}
47. Qe4 {[%clk 0:00:03.7]} 47... Qf2+ {[%clk 0:00:31.5]} 48. Qg2 {[%clk
0:00:03.8]} 48... Qxg2+ {[%clk 0:00:30.4]} 49. Kxg2 {[%clk 0:00:03.5]} 49... Ke5
{[%clk 0:00:31.1]} 50. Kf2 {[%clk 0:00:03.7]} 50... Ke4 {[%clk 0:00:31.4]} 51.
Ke2 {[%clk 0:00:03.8]} 51... h5 {[%clk 0:00:24.2]} 52. b3 {[%clk 0:00:03.7]}
52... Kf5 {[%clk 0:00:24]} 53. Ke3 {[%clk 0:00:03.2]} 53... g5 {[%clk
0:00:24.9]} 54. hxg5 {[%clk 0:00:01.6]} 54... Kxg5 {[%clk 0:00:25.1]} 55. c4
{[%clk 0:00:02.2]} 55... bxc4 {[%clk 0:00:24.8]} 56. bxc4 {[%clk 0:00:02.5]}
56... Kf5 {[%clk 0:00:24.7]} 0-1